[Event "Late-Titled-Tuesday-Blitz-July-09-2024"]
[Site "Chess.com"]
[Date "2024.07.09"]
[Round "1"]
[White "KebabJangles"]
[Black "alreadybroken23"]
[Result "1-0"]
[WhiteElo "2372"]
[BlackElo "2658"]
[TimeControl "180+1"]
[EndTime "14:07:34 PDT"]
[Termination "KebabJangles won by resignation"]

1. d4 {[%clk 0:03:00.9]} 1... d5 {[%clk 0:02:58.1]} 2. Bf4 {[%clk 0:02:58.2]}
2... Nf6 {[%clk 0:02:55.5]} 3. e3 {[%clk 0:02:58.2]} 3... c5 {[%clk 0:02:55.3]}
4. Nf3 {[%clk 0:02:58.3]} 4... Nc6 {[%clk 0:02:54.4]} 5. Nbd2 {[%clk 0:02:57.3]}
5... cxd4 {[%clk 0:02:50]} 6. exd4 {[%clk 0:02:57]} 6... Bf5 {[%clk 0:02:49.9]}
7. c3 {[%clk 0:02:56.7]} 7... e6 {[%clk 0:02:45.7]} 8. Bb5 {[%clk 0:02:54.4]}
8... Bd6 {[%clk 0:01:58]} 9. Ne5 {[%clk 0:02:52.8]} 9... Rc8 {[%clk 0:01:55.6]}
10. O-O {[%clk 0:02:50.8]} 10... O-O {[%clk 0:01:54.7]} 11. Re1 {[%clk
0:02:42.6]} 11... Qc7 {[%clk 0:01:53.7]} 12. Bxc6 {[%clk 0:02:41.1]} 12... bxc6
{[%clk 0:01:52.8]} 13. Nb3 {[%clk 0:02:41.6]} 13... Rb8 {[%clk 0:01:41.9]} 14.
f3 {[%clk 0:02:39.1]} 14... a5 {[%clk 0:01:30.7]} 15. Qd2 {[%clk 0:02:38.8]}
15... Qb6 {[%clk 0:01:14.4]} 16. Re2 {[%clk 0:02:15.2]} 16... a4 {[%clk
0:01:11.7]} 17. Nc1 {[%clk 0:02:14.7]} 17... c5 {[%clk 0:01:10.1]} 18. Be3
{[%clk 0:02:10.8]} 18... Rfc8 {[%clk 0:01:03.5]} 19. Ncd3 {[%clk 0:02:05.1]}
19... cxd4 {[%clk 0:00:41.7]} 20. Bxd4 {[%clk 0:02:06]} 20... Qb7 {[%clk
0:00:41.7]} 21. a3 {[%clk 0:01:47.4]} 21... Nd7 {[%clk 0:00:41.8]} 22. Nxd7
{[%clk 0:01:47.2]} 22... Qxd7 {[%clk 0:00:42.7]} 23. Ne5 {[%clk 0:01:47.4]}
23... Qb7 {[%clk 0:00:41.2]} 24. Rae1 {[%clk 0:01:42.7]} 24... f6 {[%clk
0:00:40.2]} 25. Nd3 {[%clk 0:01:42.1]} 25... e5 {[%clk 0:00:40.5]} 26. Bf2
{[%clk 0:01:41.3]} 26... Qb5 {[%clk 0:00:38.7]} 27. Nb4 {[%clk 0:01:40.5]} 27...
Bxb4 {[%clk 0:00:34.6]} 28. axb4 {[%clk 0:01:41.4]} 28... Rd8 {[%clk 0:00:25.4]}
29. f4 {[%clk 0:01:40]} 29... e4 {[%clk 0:00:22.5]} 30. Bd4 {[%clk 0:01:39.6]}
30... Bg4 {[%clk 0:00:21.2]} 31. Re3 {[%clk 0:01:38.1]} 31... Ra8 {[%clk
0:00:21.1]} 32. Ra1 {[%clk 0:01:37.4]} 32... h5 {[%clk 0:00:19]} 33. h3 {[%clk
0:01:35.3]} 33... Be6 {[%clk 0:00:19.5]} 34. Ra3 {[%clk 0:01:33.6]} 34... Qc4
{[%clk 0:00:19.3]} 35. Rg3 {[%clk 0:01:33.1]} 35... Kf7 {[%clk 0:00:19]} 36. Re3
{[%clk 0:01:29.5]} 36... g6 {[%clk 0:00:18.8]} 37. Qf2 {[%clk 0:01:29.4]} 37...
Bf5 {[%clk 0:00:18.3]} 38. Qh4 {[%clk 0:01:29.2]} 38... Qc6 {[%clk 0:00:18.1]}
39. Qe1 {[%clk 0:01:19.3]} 39... Rdb8 {[%clk 0:00:15.9]} 40. Qh4 {[%clk
0:01:16.5]} 40... Bd7 {[%clk 0:00:11.7]} 41. Qg3 {[%clk 0:01:15]} 41... Rg8
{[%clk 0:00:10.8]} 42. Qf2 {[%clk 0:01:14.5]} 42... Ke7 {[%clk 0:00:10.3]} 43.
Re1 {[%clk 0:01:12.4]} 43... Kf7 {[%clk 0:00:06.6]} 44. Rea1 {[%clk 0:01:10.5]}
44... Qe6 {[%clk 0:00:06.2]} 45. b3 {[%clk 0:01:07.9]} 45... g5 {[%clk
0:00:03.1]} 46. f5 {[%clk 0:01:08.2]} 46... Qxf5 {[%clk 0:00:03]} 47. Qxf5
{[%clk 0:01:09.1]} 47... Bxf5 {[%clk 0:00:03.6]} 48. bxa4 {[%clk 0:01:10]} 48...
h4 {[%clk 0:00:03.3]} 49. a5 {[%clk 0:01:05.5]} 49... Bd7 {[%clk 0:00:03.3]} 50.
a6 {[%clk 0:01:05.5]} 50... f5 {[%clk 0:00:02.9]} 51. a7 {[%clk 0:01:05.4]}
51... f4 {[%clk 0:00:02.7]} 52. Ra6 {[%clk 0:01:05.4]} 52... Rg6 {[%clk
0:00:01.3]} 53. Rxg6 {[%clk 0:01:04]} 53... Kxg6 {[%clk 0:00:02.2]} 54. Ra6+
{[%clk 0:01:04.3]} 54... Kh5 {[%clk 0:00:01.4]} 55. Rd6 {[%clk 0:01:04]} 55...
Bb5 {[%clk 0:00:01.4]} 56. Bb6 {[%clk 0:01:03.9]} 56... e3 {[%clk 0:00:01.3]}
57. Re6 {[%clk 0:01:02.8]} 57... e2 {[%clk 0:00:01.3]} 58. Bd4 {[%clk
0:01:00.8]} 58... g4 {[%clk 0:00:01]} 59. Re5+ {[%clk 0:01:00.8]} 59... Kg6
{[%clk 0:00:01.5]} 60. hxg4 {[%clk 0:01:01.7]} 60... h3 {[%clk 0:00:01.5]} 61.
gxh3 {[%clk 0:01:01.7]} 61... f3 {[%clk 0:00:01.6]} 62. Kf2 {[%clk 0:01:02.5]}
62... Rg8 {[%clk 0:00:01]} 63. h4 {[%clk 0:01:03.4]} 63... Rf8 {[%clk
0:00:01.3]} 64. h5+ {[%clk 0:01:04.3]} 64... Kh7 {[%clk 0:00:01.8]} 65. g5
{[%clk 0:01:04.5]} 65... Kg8 {[%clk 0:00:01.8]} 66. g6 {[%clk 0:01:05.4]} 66...
Rf5 {[%clk 0:00:01.6]} 67. Rxf5 {[%clk 0:01:05.2]} 1-0

[Event "Late-Titled-Tuesday-Blitz-July-09-2024"]
[Site "Chess.com"]
[Date "2024.07.09"]
[Round "1"]
[White "prxcess_brownie"]
[Black "TokChess"]
[Result "1/2-1/2"]
[WhiteElo "2225"]
[BlackElo "2584"]
[TimeControl "180+1"]
[EndTime "14:07:34 PDT"]
[Termination "Game drawn by repetition"]

1. c4 {[%clk 0:02:59.6]} 1... e5 {[%clk 0:02:59]} 2. Nc3 {[%clk 0:02:58.8]} 2...
d6 {[%clk 0:02:55.3]} 3. g3 {[%clk 0:02:58]} 3... Nf6 {[%clk 0:02:55.4]} 4. Bg2
{[%clk 0:02:57.4]} 4... Nbd7 {[%clk 0:02:56.1]} 5. d3 {[%clk 0:02:54.8]} 5...
Be7 {[%clk 0:02:56.5]} 6. Nf3 {[%clk 0:02:52.5]} 6... O-O {[%clk 0:02:56.6]} 7.
O-O {[%clk 0:02:52.2]} 7... Re8 {[%clk 0:02:57]} 8. e4 {[%clk 0:02:49.7]} 8...
Bf8 {[%clk 0:02:56.5]} 9. h3 {[%clk 0:02:49.7]} 9... c6 {[%clk 0:02:56.5]} 10.
Kh2 {[%clk 0:02:48.9]} 10... a6 {[%clk 0:02:54]} 11. Be3 {[%clk 0:02:44.3]}
11... b5 {[%clk 0:02:53.4]} 12. Nd2 {[%clk 0:02:37]} 12... Bb7 {[%clk
0:02:47.8]} 13. a3 {[%clk 0:02:18.6]} 13... Nc5 {[%clk 0:02:45.9]} 14. Qc2
{[%clk 0:02:12.7]} 14... Ne6 {[%clk 0:02:43.1]} 15. f4 {[%clk 0:02:09.7]} 15...
Nd4 {[%clk 0:02:41.4]} 16. Bxd4 {[%clk 0:02:08.2]} 16... exd4 {[%clk 0:02:41.4]}
17. Ne2 {[%clk 0:02:07.7]} 17... bxc4 {[%clk 0:02:30.9]} 18. Nxc4 {[%clk
0:02:05.6]} 18... c5 {[%clk 0:02:21.6]} 19. b4 {[%clk 0:02:04.8]} 19... d5
{[%clk 0:02:13.3]} 20. exd5 {[%clk 0:01:51.9]} 20... Bxd5 {[%clk 0:02:14.2]} 21.
bxc5 {[%clk 0:01:43.5]} 21... Bxg2 {[%clk 0:02:11.8]} 22. Kxg2 {[%clk
0:01:42.8]} 22... Rc8 {[%clk 0:02:04.7]} 23. Qb2 {[%clk 0:01:34.8]} 23... Bxc5
{[%clk 0:01:46.6]} 24. Rae1 {[%clk 0:01:31.5]} 24... Rb8 {[%clk 0:01:24.8]} 25.
Qa1 {[%clk 0:01:28.9]} 25... Rb3 {[%clk 0:01:03.2]} 26. Nc1 {[%clk 0:01:24.9]}
26... Rc3 {[%clk 0:00:58.2]} 27. Qb2 {[%clk 0:01:13.4]} 27... h5 {[%clk
0:00:50.2]} 28. Re5 {[%clk 0:00:49.8]} 28... Rxe5 {[%clk 0:00:43]} 29. fxe5
{[%clk 0:00:48.8]} 29... Nd5 {[%clk 0:00:38.1]} 30. Qb7 {[%clk 0:00:43.5]} 30...
Rc2+ {[%clk 0:00:26.3]} 31. Kh1 {[%clk 0:00:41]} 31... Be7 {[%clk 0:00:24]} 32.
Nb3 {[%clk 0:00:34.4]} 32... Ne3 {[%clk 0:00:18.5]} 33. Nxe3 {[%clk 0:00:19.7]}
33... dxe3 {[%clk 0:00:19.4]} 34. Qe4 {[%clk 0:00:18.6]} 34... Rc3 {[%clk
0:00:11]} 35. Nd4 {[%clk 0:00:16.3]} 35... Bc5 {[%clk 0:00:09.6]} 36. Nf5 {[%clk
0:00:14.9]} 36... Qxd3 {[%clk 0:00:09.1]} 37. Qa8+ {[%clk 0:00:11.4]} 37... Kh7
{[%clk 0:00:09.2]} 38. Qf3 {[%clk 0:00:10.4]} 38... g6 {[%clk 0:00:05.4]} 39.
Nd6 {[%clk 0:00:08.9]} 39... Bxd6 {[%clk 0:00:03.7]} 40. Qxf7+ {[%clk
0:00:08.6]} 40... Kh6 {[%clk 0:00:04.3]} 41. Qf4+ {[%clk 0:00:07.3]} 41... Kh7
{[%clk 0:00:04.9]} 42. Qf7+ {[%clk 0:00:07.2]} 42... Kh6 {[%clk 0:00:05.5]} 43.
Qf4+ {[%clk 0:00:07]} 43... Kh7 {[%clk 0:00:06.1]} 44. Qf7+ {[%clk 0:00:07.2]}
1/2-1/2

[Event "Late-Titled-Tuesday-Blitz-July-09-2024"]
[Site "Chess.com"]
[Date "2024.07.09"]
[Round "1"]
[White "realburq"]
[Black "ChessBrainiacOnTwitch"]
[Result "0-1"]
[WhiteElo "2439"]
[BlackElo "2816"]
[TimeControl "180+1"]
[EndTime "14:07:36 PDT"]
[Termination "ChessBrainiacOnTwitch won by resignation"]

1. e4 {[%clk 0:03:00.9]} 1... c5 {[%clk 0:02:55.3]} 2. Nf3 {[%clk 0:02:48]} 2...
d6 {[%clk 0:02:55.5]} 3. Bb5+ {[%clk 0:02:46.7]} 3... Nd7 {[%clk 0:02:55.8]} 4.
O-O {[%clk 0:02:45.4]} 4... Nf6 {[%clk 0:02:56.3]} 5. Re1 {[%clk 0:02:45.1]}
5... a6 {[%clk 0:02:55.8]} 6. Bf1 {[%clk 0:02:44]} 6... e6 {[%clk 0:02:55]} 7.
c3 {[%clk 0:02:43.9]} 7... b6 {[%clk 0:02:55.3]} 8. d4 {[%clk 0:02:40.4]} 8...
Bb7 {[%clk 0:02:55.8]} 9. Nbd2 {[%clk 0:02:38.4]} 9... Be7 {[%clk 0:02:56.2]}
10. h3 {[%clk 0:02:35.1]} 10... O-O {[%clk 0:02:56.1]} 11. Bd3 {[%clk 0:02:32]}
11... Qc7 {[%clk 0:02:55.1]} 12. Nf1 {[%clk 0:02:31.4]} 12... Rfe8 {[%clk
0:02:50.6]} 13. Ng3 {[%clk 0:02:31.2]} 13... b5 {[%clk 0:02:45.9]} 14. Bd2
{[%clk 0:02:13.8]} 14... Rac8 {[%clk 0:02:45.6]} 15. Rc1 {[%clk 0:02:13.5]}
15... Bf8 {[%clk 0:02:43]} 16. Qe2 {[%clk 0:02:12.7]} 16... cxd4 {[%clk
0:02:40.3]} 17. cxd4 {[%clk 0:02:12.5]} 17... Qb6 {[%clk 0:02:38.5]} 18. a3
{[%clk 0:01:56.3]} 18... Rc7 {[%clk 0:02:22.2]} 19. Rxc7 {[%clk 0:01:55.5]}
19... Qxc7 {[%clk 0:02:23.1]} 20. Rc1 {[%clk 0:01:53.7]} 20... Qb6 {[%clk
0:02:23.5]} 21. Be3 {[%clk 0:01:51.1]} 21... d5 {[%clk 0:02:22.3]} 22. e5 {[%clk
0:01:48.2]} 22... Ne4 {[%clk 0:02:22.7]} 23. Bxe4 {[%clk 0:01:41.8]} 23... dxe4
{[%clk 0:02:23.6]} 24. Nd2 {[%clk 0:01:42.1]} 24... f5 {[%clk 0:02:01.9]} 25.
exf6 {[%clk 0:01:20.2]} 25... Nxf6 {[%clk 0:02:02.2]} 26. d5 {[%clk 0:01:20.7]}
26... Qd6 {[%clk 0:01:58.6]} 27. dxe6 {[%clk 0:01:15.8]} 27... Qxe6 {[%clk
0:01:59.5]} 28. Nh5 {[%clk 0:00:52.3]} 28... Nd5 {[%clk 0:01:55.1]} 29. Nf4
{[%clk 0:00:50.7]} 29... Nxf4 {[%clk 0:01:53.1]} 30. Bxf4 {[%clk 0:00:51.6]}
30... Qf6 {[%clk 0:01:32.5]} 31. Qg4 {[%clk 0:00:17.5]} 31... Qxb2 {[%clk
0:01:15.6]} 32. Rc7 {[%clk 0:00:17.7]} 32... Ba8 {[%clk 0:00:48.4]} 33. Qd7
{[%clk 0:00:10.7]} 33... Re7 {[%clk 0:00:43.2]} 34. Qd8 {[%clk 0:00:10.3]} 34...
Rxc7 {[%clk 0:00:41.5]} 35. Qxc7 {[%clk 0:00:10.9]} 35... Qf6 {[%clk 0:00:39.2]}
36. Be3 {[%clk 0:00:09.3]} 36... Qf7 {[%clk 0:00:36.4]} 37. Qc3 {[%clk 0:00:08]}
37... h6 {[%clk 0:00:33.7]} 38. Nb3 {[%clk 0:00:08.3]} 38... Bd5 {[%clk
0:00:32.3]} 39. Nc5 {[%clk 0:00:08.2]} 39... Qg6 {[%clk 0:00:25.7]} 40. Qe5
{[%clk 0:00:08.2]} 40... Qc6 {[%clk 0:00:25.1]} 41. g3 {[%clk 0:00:03.2]} 41...
Bxc5 {[%clk 0:00:24.4]} 42. Bxc5 {[%clk 0:00:03.2]} 42... Qxc5 {[%clk
0:00:25.3]} 43. Qe8+ {[%clk 0:00:03.5]} 43... Qf8 {[%clk 0:00:23.5]} 44. Qe5
{[%clk 0:00:03.9]} 44... Qf7 {[%clk 0:00:20.9]} 45. Qb8+ {[%clk 0:00:03.6]}
45... Kh7 {[%clk 0:00:21.4]} 46. Qe5 {[%clk 0:00:03.6]} 46... e3 {[%clk
0:00:19.5]} 47. Qxe3 {[%clk 0:00:03.3]} 47... Qf3 {[%clk 0:00:19.9]} 48. Qxf3
{[%clk 0:00:03.3]} 48... Bxf3 {[%clk 0:00:20.8]} 49. g4 {[%clk 0:00:03.9]} 49...
a5 {[%clk 0:00:21.2]} 0-1

[Event "Late-Titled-Tuesday-Blitz-July-09-2024"]
[Site "Chess.com"]
[Date "2024.07.09"]
[Round "1"]
[White "scrambleyourbrain"]
[Black "varunkrishnanchess"]
[Result "1-0"]
[WhiteElo "2351"]
[BlackElo "2641"]
[TimeControl "180+1"]
[EndTime "14:07:36 PDT"]
[Termination "scrambleyourbrain won on time"]

1. e4 {[%clk 0:03:00.9]} 1... a6 {[%clk 0:03:00.9]} 2. d4 {[%clk 0:03:00.5]}
2... e6 {[%clk 0:03:00.7]} 3. Nf3 {[%clk 0:03:00]} 3... d5 {[%clk 0:03:00.6]} 4.
exd5 {[%clk 0:03:00]} 4... exd5 {[%clk 0:03:00.6]} 5. Nc3 {[%clk 0:03:00.7]}
5... Nf6 {[%clk 0:03:00.8]} 6. Bd3 {[%clk 0:03:01.3]} 6... Bd6 {[%clk 0:02:59]}
7. O-O {[%clk 0:03:01.7]} 7... O-O {[%clk 0:02:58.8]} 8. Re1 {[%clk 0:03:02]}
8... c5 {[%clk 0:02:55]} 9. dxc5 {[%clk 0:03:01.7]} 9... Bxc5 {[%clk 0:02:55.3]}
10. Bg5 {[%clk 0:03:01.3]} 10... Be6 {[%clk 0:02:51.6]} 11. Qd2 {[%clk
0:02:59.7]} 11... Nc6 {[%clk 0:02:44.7]} 12. a3 {[%clk 0:02:58.3]} 12... d4
{[%clk 0:02:28.3]} 13. Ne4 {[%clk 0:02:57]} 13... Nxe4 {[%clk 0:02:28]} 14. Rxe4
{[%clk 0:02:46.9]} 14... Qd7 {[%clk 0:02:24.2]} 15. Rh4 {[%clk 0:02:46.5]} 15...
Bf5 {[%clk 0:02:22.7]} 16. Bf4 {[%clk 0:02:37.4]} 16... Rfe8 {[%clk 0:02:15.9]}
17. Rh5 {[%clk 0:02:33.2]} 17... Ne7 {[%clk 0:01:51.6]} 18. Ne5 {[%clk
0:02:24.6]} 18... Qe6 {[%clk 0:01:41.3]} 19. Bc4 {[%clk 0:02:24.2]} 19... Nd5
{[%clk 0:01:41.1]} 20. Bxd5 {[%clk 0:02:23.9]} 20... Qxd5 {[%clk 0:01:35]} 21.
Rxf5 {[%clk 0:02:23.7]} 21... f6 {[%clk 0:01:31.9]} 22. Re1 {[%clk 0:02:07.4]}
22... fxe5 {[%clk 0:01:01.1]} 23. Rfxe5 {[%clk 0:02:04.6]} 23... Rxe5 {[%clk
0:01:00.3]} 24. Bxe5 {[%clk 0:02:00.9]} 24... Re8 {[%clk 0:00:50.9]} 25. Bg3
{[%clk 0:01:44.1]} 25... Rf8 {[%clk 0:00:46]} 26. Qd3 {[%clk 0:01:40.4]} 26...
b5 {[%clk 0:00:34.9]} 27. h3 {[%clk 0:01:34]} 27... Bd6 {[%clk 0:00:26.4]} 28.
Bxd6 {[%clk 0:01:21.1]} 28... Qxd6 {[%clk 0:00:27.3]} 29. Rd1 {[%clk 0:01:21.7]}
29... Qc6 {[%clk 0:00:19]} 30. Rd2 {[%clk 0:01:14]} 30... Rd8 {[%clk 0:00:17.9]}
31. c3 {[%clk 0:01:14.1]} 31... h6 {[%clk 0:00:06.7]} 32. cxd4 {[%clk
0:01:14.1]} 32... Qc1+ {[%clk 0:00:06.5]} 33. Kh2 {[%clk 0:01:13.9]} 33... Qc7+
{[%clk 0:00:06.4]} 34. Qg3 {[%clk 0:01:12.4]} 34... Qc6 {[%clk 0:00:04]} 35. Qe5
{[%clk 0:01:10.3]} 35... Re8 {[%clk 0:00:03.5]} 36. Qg3 {[%clk 0:01:06]} 36...
Rd8 {[%clk 0:00:02.7]} 37. Qf4 {[%clk 0:00:57.1]} 37... Qd7 {[%clk 0:00:03]} 38.
d5 {[%clk 0:00:56.2]} 38... Re8 {[%clk 0:00:02.5]} 39. d6 {[%clk 0:00:54.6]}
39... Rf8 {[%clk 0:00:03]} 40. Qe5 {[%clk 0:00:51.6]} 40... Re8 {[%clk
0:00:03.3]} 41. Qd5+ {[%clk 0:00:51.8]} 41... Kh8 {[%clk 0:00:03.6]} 42. f4
{[%clk 0:00:49.3]} 42... Rf8 {[%clk 0:00:04.1]} 43. Rd4 {[%clk 0:00:45.8]} 43...
Re8 {[%clk 0:00:04.1]} 44. Qf3 {[%clk 0:00:42.6]} 44... Re6 {[%clk 0:00:04]} 45.
Qa8+ {[%clk 0:00:33.4]} 45... Kh7 {[%clk 0:00:03.8]} 46. Qd5 {[%clk 0:00:32.4]}
46... Rf6 {[%clk 0:00:03.8]} 47. Qe5 {[%clk 0:00:31.4]} 47... Re6 {[%clk
0:00:03.8]} 48. Qf5+ {[%clk 0:00:31.6]} 48... Kg8 {[%clk 0:00:02.9]} 49. b4
{[%clk 0:00:24.1]} 49... Kh8 {[%clk 0:00:01.6]} 50. Rd5 {[%clk 0:00:20.1]} 1-0

[Event "Late-Titled-Tuesday-Blitz-July-09-2024"]
[Site "Chess.com"]
[Date "2024.07.09"]
[Round "1"]
[White "tusplingher"]
[Black "pinelone"]
[Result "0-1"]
[WhiteElo "2664"]
[BlackElo "2380"]
[TimeControl "180+1"]
[EndTime "14:07:38 PDT"]
[Termination "pinelone won by resignation"]

1. c4 {[%clk 0:03:00.9]} 1... e6 {[%clk 0:02:59.2]} 2. g3 {[%clk 0:02:59.9]}
2... d5 {[%clk 0:02:59.4]} 3. Bg2 {[%clk 0:03:00.5]} 3... Nf6 {[%clk 0:02:59.6]}
4. Nf3 {[%clk 0:03:00.6]} 4... Be7 {[%clk 0:02:59.4]} 5. Kf1 {[%clk 0:03:01]}
5... O-O {[%clk 0:02:59]} 6. b3 {[%clk 0:02:59.6]} 6... b6 {[%clk 0:02:58.6]} 7.
Kg1 {[%clk 0:02:57.9]} 7... Bb7 {[%clk 0:02:58.5]} 8. h3 {[%clk 0:02:55.6]} 8...
c5 {[%clk 0:02:57.7]} 9. Kh2 {[%clk 0:02:55.2]} 9... Nc6 {[%clk 0:02:57.8]} 10.
Bb2 {[%clk 0:02:52.3]} 10... d4 {[%clk 0:02:57.7]} 11. d3 {[%clk 0:02:51.5]}
11... Qc7 {[%clk 0:02:55.4]} 12. Nbd2 {[%clk 0:02:50.8]} 12... e5 {[%clk
0:02:55]} 13. Re1 {[%clk 0:02:48.4]} 13... h6 {[%clk 0:02:54.3]} 14. e3 {[%clk
0:02:47.7]} 14... dxe3 {[%clk 0:02:52.2]} 15. Rxe3 {[%clk 0:02:47.1]} 15... Nd7
{[%clk 0:02:51.4]} 16. Qe2 {[%clk 0:02:41.3]} 16... Nd4 {[%clk 0:02:42.5]} 17.
Qd1 {[%clk 0:02:36.9]} 17... Rae8 {[%clk 0:02:26.4]} 18. Ne4 {[%clk 0:02:18.4]}
18... f5 {[%clk 0:02:24]} 19. Nc3 {[%clk 0:02:12.9]} 19... f4 {[%clk 0:02:24]}
20. Nxd4 {[%clk 0:01:55]} 20... fxe3 {[%clk 0:02:10.4]} 21. Ne6 {[%clk
0:01:51.9]} 21... Qb8 {[%clk 0:02:07.9]} 22. Nxf8 {[%clk 0:01:46.9]} 22... Rxf8
{[%clk 0:02:07.6]} 23. Nd5 {[%clk 0:01:37.6]} 23... Rxf2 {[%clk 0:02:00.4]} 24.
Nxe7+ {[%clk 0:01:23.3]} 24... Kh7 {[%clk 0:01:28.1]} 25. Nd5 {[%clk 0:01:20.3]}
25... Bxd5 {[%clk 0:01:27.6]} 26. cxd5 {[%clk 0:01:19.2]} 26... Rxb2 {[%clk
0:01:22.8]} 27. Qc1 {[%clk 0:01:12.9]} 27... Rd2 {[%clk 0:01:21.7]} 28. Qe1
{[%clk 0:01:12.8]} 28... Qf8 {[%clk 0:01:03.9]} 29. Qxe3 {[%clk 0:01:07.8]}
29... Qf2 {[%clk 0:01:03.8]} 30. Qxf2 {[%clk 0:00:46.7]} 30... Rxf2 {[%clk
0:01:03.6]} 31. Kg1 {[%clk 0:00:45.2]} 31... Rd2 {[%clk 0:01:00.9]} 32. Rf1
{[%clk 0:00:44.3]} 32... Kg8 {[%clk 0:00:59.1]} 33. Be4 {[%clk 0:00:41.8]} 33...
Nf6 {[%clk 0:00:58.1]} 34. Rf2 {[%clk 0:00:33.9]} 34... Rxf2 {[%clk 0:00:46.2]}
35. Kxf2 {[%clk 0:00:34.8]} 35... Kf7 {[%clk 0:00:46.4]} 36. Kf3 {[%clk
0:00:34.2]} 36... Ke7 {[%clk 0:00:46.5]} 37. g4 {[%clk 0:00:28.5]} 37... g5
{[%clk 0:00:43.4]} 38. a3 {[%clk 0:00:23.5]} 38... Kd6 {[%clk 0:00:43.1]} 39.
Bf5 {[%clk 0:00:23.2]} 39... Nxd5 {[%clk 0:00:27.6]} 40. Kg3 {[%clk 0:00:17.9]}
40... Nc3 {[%clk 0:00:25]} 41. h4 {[%clk 0:00:16.7]} 41... Kd5 {[%clk
0:00:25.1]} 42. hxg5 {[%clk 0:00:15.7]} 42... hxg5 {[%clk 0:00:24.8]} 43. Kf3
{[%clk 0:00:16]} 43... Kd4 {[%clk 0:00:25.2]} 44. b4 {[%clk 0:00:15.8]} 44...
cxb4 {[%clk 0:00:24.8]} 45. axb4 {[%clk 0:00:16.7]} 45... a5 {[%clk 0:00:25]}
46. bxa5 {[%clk 0:00:17.4]} 46... bxa5 {[%clk 0:00:25.3]} 47. Kf2 {[%clk
0:00:17.8]} 47... a4 {[%clk 0:00:22.6]} 48. Ke1 {[%clk 0:00:17.7]} 48... a3
{[%clk 0:00:23.1]} 49. Be6 {[%clk 0:00:18]} 49... a2 {[%clk 0:00:22.2]} 50. Bxa2
{[%clk 0:00:17.7]} 50... Nxa2 {[%clk 0:00:22.4]} 51. Kd2 {[%clk 0:00:18.4]}
51... Nc3 {[%clk 0:00:22.3]} 52. Kc2 {[%clk 0:00:19]} 52... Nd5 {[%clk
0:00:22.6]} 53. Kd2 {[%clk 0:00:18.7]} 53... Nf4 {[%clk 0:00:23.2]} 0-1

[Event "Late-Titled-Tuesday-Blitz-July-09-2024"]
[Site "Chess.com"]
[Date "2024.07.09"]
[Round "1"]
[White "Sacbutt"]
[Black "xhembulla"]
[Result "1-0"]
[WhiteElo "2320"]
[BlackElo "2620"]
[TimeControl "180+1"]
[EndTime "14:07:38 PDT"]
[Termination "Sacbutt won by resignation"]

1. d4 {[%clk 0:03:00.9]} 1... Nf6 {[%clk 0:03:00.1]} 2. c4 {[%clk 0:03:01]} 2...
e6 {[%clk 0:03:00.6]} 3. Nf3 {[%clk 0:03:00.4]} 3... b6 {[%clk 0:03:00.8]} 4. g3
{[%clk 0:03:00.7]} 4... Ba6 {[%clk 0:02:59.4]} 5. b3 {[%clk 0:03:00.5]} 5...
Bb4+ {[%clk 0:02:59.2]} 6. Bd2 {[%clk 0:03:00.3]} 6... Be7 {[%clk 0:02:59.6]} 7.
Bg2 {[%clk 0:03:00.1]} 7... c6 {[%clk 0:02:59.7]} 8. O-O {[%clk 0:02:58.8]} 8...
d5 {[%clk 0:03:00.1]} 9. Qc2 {[%clk 0:02:52.7]} 9... O-O {[%clk 0:02:59.5]} 10.
Re1 {[%clk 0:02:43.9]} 10... Ne4 {[%clk 0:02:58.7]} 11. Bc1 {[%clk 0:02:40.4]}
11... Nd7 {[%clk 0:02:56.9]} 12. Bb2 {[%clk 0:02:40.3]} 12... f5 {[%clk
0:02:54.3]} 13. Nbd2 {[%clk 0:02:40]} 13... Rc8 {[%clk 0:02:53.4]} 14. e3 {[%clk
0:02:36.2]} 14... Qe8 {[%clk 0:02:44.8]} 15. Ne5 {[%clk 0:02:23.7]} 15... Nxe5
{[%clk 0:02:44.7]} 16. dxe5 {[%clk 0:02:24]} 16... Nxd2 {[%clk 0:02:44.1]} 17.
Qxd2 {[%clk 0:02:21.6]} 17... dxc4 {[%clk 0:02:44.5]} 18. Rec1 {[%clk
0:02:13.4]} 18... Rd8 {[%clk 0:02:43]} 19. Qe1 {[%clk 0:02:02.2]} 19... Qd7
{[%clk 0:02:35.8]} 20. bxc4 {[%clk 0:01:58.3]} 20... Qd2 {[%clk 0:02:33.3]} 21.
Bc3 {[%clk 0:01:54.4]} 21... Qxe1+ {[%clk 0:02:33]} 22. Bxe1 {[%clk 0:01:54.2]}
22... Rd3 {[%clk 0:02:30.7]} 23. Bxc6 {[%clk 0:01:50.5]} 23... Rfd8 {[%clk
0:02:28.7]} 24. a4 {[%clk 0:01:40.5]} 24... Ba3 {[%clk 0:02:24.7]} 25. Rc2
{[%clk 0:01:34.5]} 25... Bc5 {[%clk 0:02:15.5]} 26. Kg2 {[%clk 0:01:29.8]} 26...
Rd1 {[%clk 0:02:13.3]} 27. Rcc1 {[%clk 0:01:22.1]} 27... Rxc1 {[%clk 0:02:05.1]}
28. Rxc1 {[%clk 0:01:23]} 28... Kf7 {[%clk 0:02:05.1]} 29. a5 {[%clk 0:01:22]}
29... Rc8 {[%clk 0:01:59.5]} 30. Bb5 {[%clk 0:01:14.7]} 30... Bb7+ {[%clk
0:01:59.7]} 31. Kf1 {[%clk 0:01:05.9]} 31... Bf3 {[%clk 0:01:59.4]} 32. axb6
{[%clk 0:01:03.8]} 32... Bxb6 {[%clk 0:01:58.9]} 33. Bb4 {[%clk 0:01:01.4]}
33... Bc5 {[%clk 0:01:56.3]} 34. Bxc5 {[%clk 0:00:57.9]} 34... Rxc5 {[%clk
0:01:57.2]} 35. Ra1 {[%clk 0:00:57.3]} 35... Rc7 {[%clk 0:01:51.9]} 36. Ke1
{[%clk 0:00:52.7]} 36... g5 {[%clk 0:01:50.6]} 37. Kd2 {[%clk 0:00:48.5]} 37...
Bh5 {[%clk 0:01:37.3]} 38. Kc3 {[%clk 0:00:46.2]} 38... Kg7 {[%clk 0:01:37.1]}
39. Ra6 {[%clk 0:00:43.7]} 39... Bf7 {[%clk 0:01:37.2]} 40. Kb4 {[%clk
0:00:41.6]} 40... Rb7 {[%clk 0:01:35.6]} 41. Kc5 {[%clk 0:00:39.7]} 41... Kf8
{[%clk 0:01:33]} 42. Kc6 {[%clk 0:00:37.4]} 42... Re7 {[%clk 0:01:30.1]} 43. Kd6
{[%clk 0:00:37.5]} 43... Rb7 {[%clk 0:01:28.2]} 44. Rc6 {[%clk 0:00:34.3]} 44...
h5 {[%clk 0:01:17.6]} 45. Rc7 {[%clk 0:00:23.8]} 45... Rb6+ {[%clk 0:01:15.2]}
46. Kc5 {[%clk 0:00:21.6]} 46... h4 {[%clk 0:01:13.9]} 47. Rxa7 {[%clk
0:00:19.7]} 47... Rb8 {[%clk 0:01:14.5]} 48. Kd6 {[%clk 0:00:18.7]} 48... Rd8+
{[%clk 0:01:14.6]} 49. Rd7 {[%clk 0:00:18]} 49... Ra8 {[%clk 0:01:15.2]} 50. c5
{[%clk 0:00:18.1]} 50... Ra2 {[%clk 0:01:15.5]} 51. c6 {[%clk 0:00:18.7]} 51...
Rd2+ {[%clk 0:01:14.7]} 52. Kc7 {[%clk 0:00:18.7]} 52... Rxf2 {[%clk 0:01:15.2]}
53. Kb6 {[%clk 0:00:08]} 53... Rc2 {[%clk 0:01:13.8]} 54. gxh4 {[%clk
0:00:06.7]} 54... f4 {[%clk 0:01:07.2]} 55. exf4 {[%clk 0:00:03.6]} 55... gxf4
{[%clk 0:01:08.1]} 56. c7 {[%clk 0:00:04.2]} 56... Kg7 {[%clk 0:01:00.1]} 57.
Rd8 {[%clk 0:00:03.7]} 57... f3 {[%clk 0:00:55.4]} 58. c8=Q {[%clk 0:00:04]}
58... Rxc8 {[%clk 0:00:56.3]} 59. Rxc8 {[%clk 0:00:04.7]} 59... f2 {[%clk
0:00:57.2]} 60. Rc2 {[%clk 0:00:04.8]} 60... Bh5 {[%clk 0:00:57]} 61. Rxf2
{[%clk 0:00:04.9]} 61... Kg6 {[%clk 0:00:57.9]} 62. Rf6+ {[%clk 0:00:04.8]}
62... Kg7 {[%clk 0:00:58.8]} 63. Rxe6 {[%clk 0:00:05.3]} 63... Bg4 {[%clk
0:00:59.7]} 64. Rf6 {[%clk 0:00:05.7]} 64... Bh3 {[%clk 0:00:59.8]} 65. Kc5
{[%clk 0:00:06]} 1-0